Department Family,Date Paid,Expense Type,Expense Area,Supplier,Transaction Number,Amount,Vat Inclusive
Crown Prosecution Service ,05/06/23,Crown Court Very High Cost Cases Full Scheme,North West Crown Court Hub,15 Winckley Square Chambers,BLW 271258*8,"31,196.72",Y
Crown Prosecution Service ,14/06/23,Crown Court Graduated Fee Scheme,East of England RASSO Unit,2 Bedford Row Chambers,JC202186-2,"33,493.32",
Crown Prosecution Service ,19/06/23,Crown Court Graduated Fee Scheme,SEOC Team 2,2 Harcourt Buildings,CDR/118010,"29,335.84",Y
Crown Prosecution Service ,19/06/23,Crown Court Graduated Fee Scheme,London South Complex Casework Unit,2 Harcourt Buildings,JD/116904,"39,484.80",Y
Crown Prosecution Service ,12/06/23,Crown Court Graduated Fee Scheme,London North Complex Casework Unit,2 Harcourt Buildings,JK/116228,"56,604.36",Y
Crown Prosecution Service ,02/06/23,Crown Court Graduated Fee Scheme,South East Crown Court,2 Harcourt Buildings,TF/117791,"27,434.40",Y
Crown Prosecution Service ,12/06/23,Crown Court Graduated Fee Scheme,London North Complex Casework Unit,2 Harcourt Buildings,TN/116228,"28,300.32",Y
Crown Prosecution Service ,02/06/23,Crown Court Graduated Fee Scheme,London North Complex Casework Unit,2 Hare Court Chambers -Chambers of Orlando Pownall,119960 / BON,"62,276.64",Y
Crown Prosecution Service ,02/06/23,Crown Court Graduated Fee Scheme,London North Complex Casework Unit,2 Hare Court Chambers -Chambers of Orlando Pownall,119960 / FR,"31,135.80",Y
Crown Prosecution Service ,26/06/23,Crown Court Very High Cost Cases Full Scheme,SEOC Team 2,2 Hare Court Chambers -Chambers of Orlando Pownall,JKI 115661,"30,072.24",Y
Crown Prosecution Service ,29/06/23,Crown Court Graduated Fee Scheme,London South Complex Casework Unit,2 Kings Bench Walk London,300053-GO,"28,362.00",
Crown Prosecution Service ,19/06/23,Crown Court Graduated Fee Scheme,Thames and Chiltern Complex Casework Unit,23 Essex Street Chambers,182134-FEN,"29,643.36",Y
Crown Prosecution Service ,07/06/23,Crown Court Graduated Fee Scheme,London North Complex Casework Unit,23 Essex Street Chambers,196858 - ALG 1,"35,138.40",Y
Crown Prosecution Service ,02/06/23,Crown Court Graduated Fee Scheme,Thames Chiltern Crown Court Unit,23 Essex Street Chambers,201750-RSC-TRIAL,"46,210.32",Y
Crown Prosecution Service ,19/06/23,Crown Court Graduated Fee Scheme,South East RASSO Unit,23 Essex Street Chambers,202964-EM,"35,928.60",Y
Crown Prosecution Service ,26/06/23,Crown Court Graduated Fee Scheme,North West Crown Court Hub,23 Essex Street Chambers,203892-SB,"27,514.20",Y
Crown Prosecution Service ,19/06/23,Crown Court Graduated Fee Scheme,London North Complex Casework Unit,23 Essex Street Chambers,204138-FEN,"35,138.40",Y
Crown Prosecution Service ,29/06/23,Crown Court Very High Cost Cases Full Scheme,Cymru Wales South East Crown Court,30 Park Place Chambers,631715-3/AJ,"25,694.80",
Crown Prosecution Service ,12/06/23,Crown Court Graduated Fee Scheme,Cymru Wales Complex Casework Unit,30 Park Place Chambers,634285-1/CR,"39,022.98",
Crown Prosecution Service ,08/06/23,Crown Court Graduated Fee Scheme,London North Crown Court Unit,36 Bedford Row,208209/SMC,"30,118.80",Y
Crown Prosecution Service ,19/06/23,Crown Court Graduated Fee Scheme,East Midlands Crown Court Section,36 Bedford Row,215118-JEC,"36,097.32",Y
Crown Prosecution Service ,26/06/23,Crown Court Graduated Fee Scheme,East Midlands Crown Court Section,36 Bedford Row,221982-CD,"27,812.64",Y
Crown Prosecution Service ,26/06/23,Crown Court Very High Cost Cases Full Scheme,East Midlands Complex Casework Unit,36 Bedford Row,Stage 4 Trial Part 2,"32,357.78",Y
Crown Prosecution Service ,08/06/23,Crown Court Graduated Fee Scheme,London North Complex Casework Unit,5 King's Bench Walk,AOKC178554.Trial,"46,489.08",Y
Crown Prosecution Service ,26/06/23,Crown Court Graduated Fee Scheme,RWD North Unit,5 King's Bench Walk,BHO173368.Trial1,"46,768.80",Y
Crown Prosecution Service ,27/06/23,Crown Court Graduated Fee Scheme,London South Complex Casework Unit,5 King's Bench Walk,CHO176754.Trial,"53,176.68",Y
Crown Prosecution Service ,08/06/23,Crown Court Graduated Fee Scheme,London North Complex Casework Unit,5 King's Bench Walk,DRKC177663.Trial,"41,203.56",Y
Crown Prosecution Service ,26/06/23,Crown Court Graduated Fee Scheme,RWD North Unit,5 King's Bench Walk,FH173368.Trial1,"32,300.16",Y
Crown Prosecution Service ,26/06/23,Crown Court Graduated Fee Scheme,London South Complex Casework Unit,5 King's Bench Walk,SW176754.Trial,"35,497.32",Y
Crown Prosecution Service ,29/06/23,Crown Court Graduated Fee Scheme,London North Complex Casework Unit,5 King's Bench Walk,WD175274,"62,084.40",Y
Crown Prosecution Service ,09/06/23,Crown Court Graduated Fee Scheme,RWD North Unit,5 Paper Buildings,117607/JMC,"62,385.48",Y
Crown Prosecution Service ,09/06/23,Crown Court Graduated Fee Scheme,RWD North Unit,5 Paper Buildings,117607/JW,"29,091.24",Y
Crown Prosecution Service ,05/06/23,Crown Court Graduated Fee Scheme,East of England Complex Casework Unit,5 SAH Services Ltd,185583-2/DJ,"37,198.80",Y
Crown Prosecution Service ,02/06/23,Crown Court Graduated Fee Scheme,East of England RASSO Unit,5 SAH Services Ltd,187535-1/EB,"25,299.72",Y
Crown Prosecution Service ,16/06/23,Crown Court Graduated Fee Scheme,London North Complex Casework Unit,6 Kings Bench Walk- Chambers of D Fisher & D Perry,102747 TB,"36,849.60",Y
Crown Prosecution Service ,16/06/23,Crown Court Graduated Fee Scheme,London North Complex Casework Unit,6 Kings Bench Walk- Chambers of D Fisher & D Perry,103931 TC,"28,293.60",Y
Crown Prosecution Service ,29/06/23,Crown Court Graduated Fee Scheme,London North Complex Casework Unit,6 Kings Bench Walk- Chambers of D Fisher & D Perry,104043 GP1,"30,004.80",Y
Crown Prosecution Service ,05/06/23,Crown Court Graduated Fee Scheme,Wessex Crown Court Unit,6 Kings Bench Walk- Chambers of D Fisher & D Perry,104049 CUR,"63,726.24",Y
Crown Prosecution Service ,05/06/23,Crown Court Graduated Fee Scheme,Wessex Crown Court Unit,6 Kings Bench Walk- Chambers of D Fisher & D Perry,104049 VS,"31,343.52",Y
Crown Prosecution Service ,19/06/23,Crown Court Graduated Fee Scheme,London North Complex Casework Unit,6 Kings Bench Walk- Chambers of D Fisher & D Perry,99556 TC2,"39,272.70",Y
Crown Prosecution Service ,21/06/23,Crown Court Graduated Fee Scheme,South East Crown Court,6 Pump Court The Chambers of Mr Stephen Hockman,159586/CE,"25,488.84",Y
Crown Prosecution Service ,26/06/23,IT services,DTS Programme Project Cost,Accenture (UK) Ltd London,3003612489,"116,934.00",Y
Crown Prosecution Service ,12/06/23,Recoverable VAT control,Balance Sheet,Accenture (UK) Ltd London,3003612497,"6,720.00",Y
Crown Prosecution Service ,12/06/23,IT services,DTS Programme Project Cost,Accenture (UK) Ltd London,3003612497,"33,600.00",
Crown Prosecution Service ,19/06/23,IT services,End User Computing Contract,ACS Systems UK Limited Northampton,INV431848,"33,864.00",Y
Crown Prosecution Service ,07/06/23,IT non capital software licences,Other Corporate Programme Payments,Anaplan Ltd London,10040903REKEY,"138,852.00",Y
Crown Prosecution Service ,28/06/23,General Professional Services,DTS Programme Project Cost,Bloom Procurement Services Ltd Gateshead,SIN043904,"128,538.95",Y
Crown Prosecution Service ,07/06/23,Other Expert Fees,Mersey Cheshire Complex Casework Unit,,050323-090423,"41,870.00",
Crown Prosecution Service ,22/06/23,Crown Court Graduated Fee Scheme,Yorkshire and Humberside Complex Casework Unit,Broadway House Chambers,163298-3/MDC,"40,168.80",Y
Crown Prosecution Service ,28/06/23,Legal Consultancy Advice,DTS Programme Project Cost,Brownejacobson Nottingham,IN-000149411,"91,808.16",Y
Crown Prosecution Service ,05/06/23,IT non capital software licences,Legal Reference and ICT Licenses,CDW Limited London,PSINV03980398,"806,990.40",Y
Crown Prosecution Service ,26/06/23,Recoverable VAT control,Balance Sheet,CGI IT UK Ltd,GB014106131,"71,793.20",Y
Crown Prosecution Service ,26/06/23,Intangibles asset purchase clearing CMS,DTS ICT Capital Expenditure,CGI IT UK Ltd,GB014106131,"358,966.00",
Crown Prosecution Service ,26/06/23,Intangibles asset purchase clearing CMS,DTS ICT Capital Expenditure,CGI IT UK Ltd,GB014106132,"57,604.94",
Crown Prosecution Service ,26/06/23,Recoverable VAT control,Balance Sheet,CGI IT UK Ltd,GB014106132,"11,520.99",Y
Crown Prosecution Service ,26/06/23,Recoverable VAT control,Balance Sheet,CGI IT UK Ltd,GB014106189,"199,935.58",Y
Crown Prosecution Service ,26/06/23,Intangibles asset purchase clearing CMS,DTS ICT Capital Expenditure,CGI IT UK Ltd,GB014106189,"999,677.91",
Crown Prosecution Service ,12/06/23,Recoverable VAT control,Balance Sheet,CGI IT UK Ltd,GB014107143,"4,573.90",Y
Crown Prosecution Service ,12/06/23,IT services,Apps and Hosting Contract,CGI IT UK Ltd,GB014107143,"22,869.48",
Crown Prosecution Service ,28/06/23,IT services,DTS Programme Project Cost,CGI IT UK Ltd,GB014107255,"51,851.78",Y
Crown Prosecution Service ,19/06/23,IT services,Apps and Hosting Contract,CGI IT UK Ltd,GB014107435,"1,079,790.09",
Crown Prosecution Service ,19/06/23,Recoverable VAT control,Balance Sheet,CGI IT UK Ltd,GB014107435,"215,958.02",Y
Crown Prosecution Service ,26/06/23,Recoverable VAT control,Balance Sheet,CGI IT UK Ltd,GB014107655,"19,925.71",Y
Crown Prosecution Service ,26/06/23,Intangibles asset purchase clearing CMS,DTS ICT Capital Expenditure,CGI IT UK Ltd,GB014107655,"99,628.53",
Crown Prosecution Service ,28/06/23,Recoverable VAT control,Balance Sheet,CGI IT UK Ltd,GB014107817,"18,830.36",Y
Crown Prosecution Service ,28/06/23,IT services,Service Desk Contract,CGI IT UK Ltd,GB014107817,"94,151.82",
Crown Prosecution Service ,28/06/23,Recoverable VAT control,Balance Sheet,CGI IT UK Ltd,GB014108198,"146,438.56",Y
Crown Prosecution Service ,28/06/23,Intangibles asset purchase clearing CMS,DTS ICT Capital Expenditure,CGI IT UK Ltd,GB014108198,"732,192.79",
Crown Prosecution Service ,07/06/23,UK National rail travel,Private Office,Clarity Travel Management,CPSHQ040623,194.50,
Crown Prosecution Service ,07/06/23,UK National rail travel,Court Business Unit,Clarity Travel Management,CPSHQ040623,320.40,
Crown Prosecution Service ,07/06/23,UK National rail travel,Operational Business Support,Clarity Travel Management,CPSHQ040623,835.00,
Crown Prosecution Service ,07/06/23,UK National rail travel,Compliance and Assurance,Clarity Travel Management,CPSHQ040623,776.70,
Crown Prosecution Service ,07/06/23,UK National rail travel,Press Office,Clarity Travel Management,CPSHQ040623,45.00,
Crown Prosecution Service ,07/06/23,UK National rail travel,CFO Strategic Financial Planning,Clarity Travel Management,CPSHQ040623,"1,029.50",
Crown Prosecution Service ,07/06/23,UK National rail travel,Permanent Transfer Costs,Clarity Travel Management,CPSHQ040623,577.60,
Crown Prosecution Service ,07/06/23,UK National rail travel,Chief Finance Officer,Clarity Travel Management,CPSHQ040623,391.60,
Crown Prosecution Service ,07/06/23,UK National rail travel,Central Legal Training Team,Clarity Travel Management,CPSHQ040623,310.50,
Crown Prosecution Service ,07/06/23,UK National rail travel,PF HR Systems and Information,Clarity Travel Management,CPSHQ040623,41.70,
Crown Prosecution Service ,07/06/23,UK National rail travel,DID Central Leadership Team,Clarity Travel Management,CPSHQ040623,611.90,
Crown Prosecution Service ,07/06/23,UK National rail travel,PF MAER and Employee Relations,Clarity Travel Management,CPSHQ040623,73.30,
Crown Prosecution Service ,07/06/23,UK National rail travel,CFO Estates,Clarity Travel Management,CPSHQ040623,45.70,
Crown Prosecution Service ,07/06/23,UK National rail travel,PF People and Business Change,Clarity Travel Management,CPSHQ040623,66.80,
Crown Prosecution Service ,07/06/23,UK National rail travel,Operational Performance,Clarity Travel Management,CPSHQ040623,364.50,
Crown Prosecution Service ,07/06/23,UK National rail travel,DID DTS Change,Clarity Travel Management,CPSHQ040623,"2,795.45",
Crown Prosecution Service ,07/06/23,UK National rail travel,DID Security and Information,Clarity Travel Management,CPSHQ040623,575.65,
Crown Prosecution Service ,07/06/23,UK National rail travel,PF HR Business Partnering,Clarity Travel Management,CPSHQ040623,219.50,
Crown Prosecution Service ,07/06/23,UK National rail travel,Corporate Communication,Clarity Travel Management,CPSHQ040623,"1,215.30",
Crown Prosecution Service ,07/06/23,UK National rail travel,DID Operational Process,Clarity Travel Management,CPSHQ040623,716.50,
Crown Prosecution Service ,07/06/23,UK National rail travel,PF Learning and Development General,Clarity Travel Management,CPSHQ040623,990.70,
Crown Prosecution Service ,07/06/23,UK National rail travel,PF HR Operations,Clarity Travel Management,CPSHQ040623,65.80,
Crown Prosecution Service ,07/06/23,UK Hotels,Operational Change,Clarity Travel Management,CPSHQ040623,471.79,Y
Crown Prosecution Service ,07/06/23,UK Hotels,DID Central Leadership Team,Clarity Travel Management,CPSHQ040623,204.50,Y
Crown Prosecution Service ,07/06/23,UK Hotels,Operational Business Support,Clarity Travel Management,CPSHQ040623,78.00,Y
Crown Prosecution Service ,07/06/23,UK Hotels,Court Business Unit,Clarity Travel Management,CPSHQ040623,387.34,Y
Crown Prosecution Service ,07/06/23,UK Hotels,Compliance and Assurance,Clarity Travel Management,CPSHQ040623,621.00,Y
Crown Prosecution Service ,07/06/23,UK Hotels,CFO Financial Reporting,Clarity Travel Management,CPSHQ040623,173.00,Y
Crown Prosecution Service ,07/06/23,UK Hotels,Central Legal Training Team,Clarity Travel Management,CPSHQ040623,774.76,Y
Crown Prosecution Service ,07/06/23,UK Hotels,DTUS,Clarity Travel Management,CPSHQ040623,173.49,Y
Crown Prosecution Service ,07/06/23,UK Hotels,Director of Legal Services,Clarity Travel Management,CPSHQ040623,"1,335.84",Y
Crown Prosecution Service ,07/06/23,UK Hotels,DID DTS Technology,Clarity Travel Management,CPSHQ040623,734.40,Y
Crown Prosecution Service ,07/06/23,UK Hotels,Strategy and Policy,Clarity Travel Management,CPSHQ040623,628.00,Y
Crown Prosecution Service ,07/06/23,UK Hotels,PF Resourcing,Clarity Travel Management,CPSHQ040623,200.98,Y
Crown Prosecution Service ,07/06/23,UK Hotels,CFO Estates,Clarity Travel Management,CPSHQ040623,"5,201.99",Y
Crown Prosecution Service ,07/06/23,UK Hotels,CFO Finance Operations,Clarity Travel Management,CPSHQ040623,142.00,Y
Crown Prosecution Service ,07/06/23,UK Hotels,Central Operational Training,Clarity Travel Management,CPSHQ040623,"1,856.10",Y
Crown Prosecution Service ,07/06/23,UK Hotels,DID Security and Information,Clarity Travel Management,CPSHQ040623,286.40,Y
Crown Prosecution Service ,07/06/23,UK Hotels,Permanent Transfer Costs,Clarity Travel Management,CPSHQ040623,531.96,Y
Crown Prosecution Service ,07/06/23,UK Hotels,CFO Commercial,Clarity Travel Management,CPSHQ040623,168.00,Y
Crown Prosecution Service ,07/06/23,UK Hotels,DID DTS Change,Clarity Travel Management,CPSHQ040623,"1,095.96",Y
Crown Prosecution Service ,07/06/23,UK Hotels,DID Operational Process,Clarity Travel Management,CPSHQ040623,333.00,Y
Crown Prosecution Service ,07/06/23,UK Hotels,Press Office,Clarity Travel Management,CPSHQ040623,73.00,Y
Crown Prosecution Service ,07/06/23,UK National rail travel,Operational Change,Clarity Travel Management,CPSHQ040623,"1,375.05",
Crown Prosecution Service ,07/06/23,UK National rail travel,Central Operational Training,Clarity Travel Management,CPSHQ040623,583.30,
Crown Prosecution Service ,07/06/23,UK National rail travel,Strategy and Policy,Clarity Travel Management,CPSHQ040623,676.30,
Crown Prosecution Service ,07/06/23,UK National rail travel,DID DTS Technology,Clarity Travel Management,CPSHQ040623,"1,121.20",
Crown Prosecution Service ,07/06/23,UK National rail travel,CFO Commercial,Clarity Travel Management,CPSHQ040623,520.70,
Crown Prosecution Service ,07/06/23,UK National rail travel,PF Resourcing,Clarity Travel Management,CPSHQ040623,86.70,
Crown Prosecution Service ,20/06/23,UK Hotels,Operational Business Support,Clarity Travel Management,CPSHQ110623,341.00,Y
Crown Prosecution Service ,20/06/23,UK National rail travel,PF Resourcing,Clarity Travel Management,CPSHQ110623,643.70,
Crown Prosecution Service ,20/06/23,UK Hotels,DID DTS Technology,Clarity Travel Management,CPSHQ110623,"1,559.08",Y
Crown Prosecution Service ,20/06/23,UK Hotels,DID Operational Process,Clarity Travel Management,CPSHQ110623,468.00,Y
Crown Prosecution Service ,20/06/23,UK Hotels,Permanent Transfer Costs,Clarity Travel Management,CPSHQ110623,520.48,Y
Crown Prosecution Service ,20/06/23,UK Hotels,Corporate Communication,Clarity Travel Management,CPSHQ110623,150.89,Y
Crown Prosecution Service ,20/06/23,UK Hotels,Central Operational Training,Clarity Travel Management,CPSHQ110623,223.80,Y
Crown Prosecution Service ,20/06/23,UK Hotels,DID Central Leadership Team,Clarity Travel Management,CPSHQ110623,233.43,Y
Crown Prosecution Service ,20/06/23,UK Hotels,PF People and Business Change,Clarity Travel Management,CPSHQ110623,291.00,Y
Crown Prosecution Service ,20/06/23,UK Hotels,Central Legal Training Team,Clarity Travel Management,CPSHQ110623,806.36,Y
Crown Prosecution Service ,20/06/23,UK Hotels,PF Learning and Development General,Clarity Travel Management,CPSHQ110623,132.00,Y
Crown Prosecution Service ,20/06/23,UK Hotels,CFO Strategic Financial Planning,Clarity Travel Management,CPSHQ110623,163.40,Y
Crown Prosecution Service ,20/06/23,UK Hotels,Operational Change,Clarity Travel Management,CPSHQ110623,894.66,Y
Crown Prosecution Service ,20/06/23,UK Hotels,Strategy and Policy,Clarity Travel Management,CPSHQ110623,333.00,Y
Crown Prosecution Service ,20/06/23,UK Hotels,DID Security and Information,Clarity Travel Management,CPSHQ110623,285.80,Y
Crown Prosecution Service ,20/06/23,UK Hotels,CFO Commercial,Clarity Travel Management,CPSHQ110623,864.84,Y
Crown Prosecution Service ,20/06/23,UK Hotels,CFO Finance Operations,Clarity Travel Management,CPSHQ110623,151.00,Y
Crown Prosecution Service ,20/06/23,UK National rail travel,DID DTS Change,Clarity Travel Management,CPSHQ110623,"2,735.15",
Crown Prosecution Service ,20/06/23,UK National rail travel,Operational Performance,Clarity Travel Management,CPSHQ110623,782.70,
Crown Prosecution Service ,20/06/23,UK National rail travel,Court Business Unit,Clarity Travel Management,CPSHQ110623,"1,147.30",
Crown Prosecution Service ,20/06/23,UK National rail travel,DID Operational Process,Clarity Travel Management,CPSHQ110623,"1,234.00",
Crown Prosecution Service ,20/06/23,UK National rail travel,DTUS,Clarity Travel Management,CPSHQ110623,246.00,
Crown Prosecution Service ,20/06/23,UK National rail travel,Chief Finance Officer,Clarity Travel Management,CPSHQ110623,266.10,
Crown Prosecution Service ,20/06/23,UK National rail travel,PF People and Business Change,Clarity Travel Management,CPSHQ110623,326.60,
Crown Prosecution Service ,20/06/23,UK National rail travel,CFO Commercial,Clarity Travel Management,CPSHQ110623,"2,673.50",
Crown Prosecution Service ,20/06/23,UK National rail travel,Corporate Communication,Clarity Travel Management,CPSHQ110623,993.80,
Crown Prosecution Service ,20/06/23,UK National rail travel,Operational Change,Clarity Travel Management,CPSHQ110623,970.10,
Crown Prosecution Service ,20/06/23,UK National rail travel,CFO Estates,Clarity Travel Management,CPSHQ110623,564.40,
Crown Prosecution Service ,20/06/23,UK National rail travel,PF HR Business Management,Clarity Travel Management,CPSHQ110623,213.40,
Crown Prosecution Service ,20/06/23,UK National rail travel,Strategy and Policy,Clarity Travel Management,CPSHQ110623,"1,435.25",
Crown Prosecution Service ,20/06/23,UK National rail travel,PF HR Systems and Information,Clarity Travel Management,CPSHQ110623,921.40,
Crown Prosecution Service ,20/06/23,UK National rail travel,PF Learning and Development General,Clarity Travel Management,CPSHQ110623,"2,416.90",
Crown Prosecution Service ,20/06/23,UK National rail travel,PF HR Business Partnering,Clarity Travel Management,CPSHQ110623,"1,113.00",
Crown Prosecution Service ,20/06/23,UK National rail travel,Press Office,Clarity Travel Management,CPSHQ110623,385.70,
Crown Prosecution Service ,20/06/23,UK National rail travel,CFO Finance Operations,Clarity Travel Management,CPSHQ110623,188.30,
Crown Prosecution Service ,20/06/23,UK National rail travel,PF HR Operations,Clarity Travel Management,CPSHQ110623,"2,517.60",
Crown Prosecution Service ,20/06/23,UK National rail travel,Operational Business Support,Clarity Travel Management,CPSHQ110623,474.60,
Crown Prosecution Service ,20/06/23,UK National rail travel,Central Operational Training,Clarity Travel Management,CPSHQ110623,388.90,
Crown Prosecution Service ,20/06/23,UK National rail travel,DID Central Leadership Team,Clarity Travel Management,CPSHQ110623,912.30,
Crown Prosecution Service ,20/06/23,UK National rail travel,Permanent Transfer Costs,Clarity Travel Management,CPSHQ110623,688.20,
Crown Prosecution Service ,20/06/23,UK National rail travel,Private Office,Clarity Travel Management,CPSHQ110623,318.20,
Crown Prosecution Service ,20/06/23,UK Hotels,PF HR Systems and Information,Clarity Travel Management,CPSHQ110623,131.90,
Crown Prosecution Service ,20/06/23,UK National rail travel,Compliance and Assurance,Clarity Travel Management,CPSHQ110623,"1,103.00",
Crown Prosecution Service ,20/06/23,UK National rail travel,Central Legal Training Team,Clarity Travel Management,CPSHQ110623,"2,798.30",
Crown Prosecution Service ,20/06/23,UK National rail travel,DID Security and Information,Clarity Travel Management,CPSHQ110623,"1,827.20",
Crown Prosecution Service ,20/06/23,UK National rail travel,CFO Strategic Financial Planning,Clarity Travel Management,CPSHQ110623,271.50,
Crown Prosecution Service ,20/06/23,UK National rail travel,Director of Legal Services,Clarity Travel Management,CPSHQ110623,585.10,
Crown Prosecution Service ,20/06/23,UK National rail travel,CFO Fin System Change and Costings,Clarity Travel Management,CPSHQ110623,373.00,
Crown Prosecution Service ,20/06/23,UK National rail travel,London North Management Team,Clarity Travel Management,CPSHQ110623,57.10,
Crown Prosecution Service ,20/06/23,UK National rail travel,DID DTS Technology,Clarity Travel Management,CPSHQ110623,402.60,
Crown Prosecution Service ,20/06/23,UK Hotels,DID DTS Change,Clarity Travel Management,CPSHQ110623,"2,708.23",Y
Crown Prosecution Service ,30/06/23,UK Hotels,DID Central Leadership Team,Clarity Travel Management,CPSHQ180623,"1,188.91",Y
Crown Prosecution Service ,30/06/23,UK National rail travel,PF Resourcing,Clarity Travel Management,CPSHQ180623,546.20,
Crown Prosecution Service ,30/06/23,UK Hotels,PF HR Business Management,Clarity Travel Management,CPSHQ180623,518.01,Y
Crown Prosecution Service ,30/06/23,UK Hotels,Operational Performance,Clarity Travel Management,CPSHQ180623,378.30,Y
Crown Prosecution Service ,30/06/23,UK Hotels,Private Office,Clarity Travel Management,CPSHQ180623,162.00,Y
Crown Prosecution Service ,30/06/23,UK Hotels,Strategy and Policy,Clarity Travel Management,CPSHQ180623,265.50,Y
Crown Prosecution Service ,30/06/23,UK Hotels,PF HR Business Partnering,Clarity Travel Management,CPSHQ180623,97.43,Y
Crown Prosecution Service ,30/06/23,UK Hotels,CFO Finance Operations,Clarity Travel Management,CPSHQ180623,151.00,Y
Crown Prosecution Service ,30/06/23,UK Hotels,DID DTS Technology,Clarity Travel Management,CPSHQ180623,252.51,Y
Crown Prosecution Service ,30/06/23,UK Hotels,Court Business Unit,Clarity Travel Management,CPSHQ180623,143.38,Y
Crown Prosecution Service ,30/06/23,UK Hotels,PF Learning and Development General,Clarity Travel Management,CPSHQ180623,"1,007.00",Y
Crown Prosecution Service ,30/06/23,UK Hotels,Central Legal Training Team,Clarity Travel Management,CPSHQ180623,"2,960.98",Y
Crown Prosecution Service ,30/06/23,UK Hotels,Operational Business Support,Clarity Travel Management,CPSHQ180623,300.00,Y
Crown Prosecution Service ,30/06/23,UK Hotels,Compliance and Assurance,Clarity Travel Management,CPSHQ180623,"2,101.82",Y
Crown Prosecution Service ,30/06/23,UK Hotels,DID Security and Information,Clarity Travel Management,CPSHQ180623,"1,160.50",Y
Crown Prosecution Service ,30/06/23,UK Hotels,Permanent Transfer Costs,Clarity Travel Management,CPSHQ180623,652.77,Y
Crown Prosecution Service ,30/06/23,UK Hotels,DID DTS Change,Clarity Travel Management,CPSHQ180623,"3,537.06",Y
Crown Prosecution Service ,30/06/23,UK Hotels,Corporate Communication,Clarity Travel Management,CPSHQ180623,432.30,Y
Crown Prosecution Service ,30/06/23,UK Hotels,Operational Change,Clarity Travel Management,CPSHQ180623,301.50,Y
Crown Prosecution Service ,30/06/23,UK Hotels,DID Operational Process,Clarity Travel Management,CPSHQ180623,270.00,Y
Crown Prosecution Service ,30/06/23,UK Hotels,DTUS,Clarity Travel Management,CPSHQ180623,70.99,Y
Crown Prosecution Service ,30/06/23,UK National rail travel,PF HR Operations,Clarity Travel Management,CPSHQ180623,"1,601.70",
Crown Prosecution Service ,30/06/23,UK National rail travel,PF HR Business Partnering,Clarity Travel Management,CPSHQ180623,312.90,
Crown Prosecution Service ,30/06/23,UK National rail travel,PF HR Business Management,Clarity Travel Management,CPSHQ180623,61.40,
Crown Prosecution Service ,30/06/23,UK National rail travel,Operational Performance,Clarity Travel Management,CPSHQ180623,115.70,
Crown Prosecution Service ,30/06/23,UK National rail travel,PF Analytics and Workforce Plan,Clarity Travel Management,CPSHQ180623,202.80,
Crown Prosecution Service ,30/06/23,UK National rail travel,DID DTS Change,Clarity Travel Management,CPSHQ180623,"1,439.85",
Crown Prosecution Service ,30/06/23,UK National rail travel,Court Business Unit,Clarity Travel Management,CPSHQ180623,"1,239.70",
Crown Prosecution Service ,30/06/23,UK National rail travel,Corporate Communication,Clarity Travel Management,CPSHQ180623,"1,771.00",
Crown Prosecution Service ,30/06/23,UK National rail travel,CFO Estates,Clarity Travel Management,CPSHQ180623,58.80,
Crown Prosecution Service ,30/06/23,UK National rail travel,Press Office,Clarity Travel Management,CPSHQ180623,198.60,
Crown Prosecution Service ,30/06/23,UK National rail travel,Private Office,Clarity Travel Management,CPSHQ180623,83.00,
Crown Prosecution Service ,30/06/23,UK National rail travel,Central Legal Training Team,Clarity Travel Management,CPSHQ180623,"1,365.20",
Crown Prosecution Service ,30/06/23,UK National rail travel,Operational Change,Clarity Travel Management,CPSHQ180623,"1,302.30",
Crown Prosecution Service ,30/06/23,UK National rail travel,DID Security and Information,Clarity Travel Management,CPSHQ180623,"1,089.80",
Crown Prosecution Service ,30/06/23,UK National rail travel,CFO Fin System Change and Costings,Clarity Travel Management,CPSHQ180623,179.10,
Crown Prosecution Service ,30/06/23,UK National rail travel,Strategy and Policy,Clarity Travel Management,CPSHQ180623,"2,745.55",
Crown Prosecution Service ,30/06/23,UK National rail travel,Director of Legal Services,Clarity Travel Management,CPSHQ180623,591.90,
Crown Prosecution Service ,30/06/23,UK National rail travel,Permanent Transfer Costs,Clarity Travel Management,CPSHQ180623,382.90,
Crown Prosecution Service ,30/06/23,UK National rail travel,DID Operational Process,Clarity Travel Management,CPSHQ180623,432.50,
Crown Prosecution Service ,30/06/23,UK National rail travel,PF Learning and Development General,Clarity Travel Management,CPSHQ180623,"1,279.00",
Crown Prosecution Service ,30/06/23,UK National rail travel,DTUS,Clarity Travel Management,CPSHQ180623,130.80,
Crown Prosecution Service ,30/06/23,UK National rail travel,PF People and Business Change,Clarity Travel Management,CPSHQ180623,668.50,
Crown Prosecution Service ,30/06/23,UK National rail travel,PF HR Systems and Information,Clarity Travel Management,CPSHQ180623,232.70,
Crown Prosecution Service ,30/06/23,UK National rail travel,DID Central Leadership Team,Clarity Travel Management,CPSHQ180623,"1,141.60",
Crown Prosecution Service ,30/06/23,UK National rail travel,Central Operational Training,Clarity Travel Management,CPSHQ180623,967.10,
Crown Prosecution Service ,30/06/23,UK National rail travel,Compliance and Assurance,Clarity Travel Management,CPSHQ180623,202.50,
Crown Prosecution Service ,30/06/23,UK National rail travel,Operational Business Support,Clarity Travel Management,CPSHQ180623,726.60,
Crown Prosecution Service ,30/06/23,UK National rail travel,Chief Finance Officer,Clarity Travel Management,CPSHQ180623,603.00,
Crown Prosecution Service ,30/06/23,UK National rail travel,DID DTS Technology,Clarity Travel Management,CPSHQ180623,"1,250.10",
Crown Prosecution Service ,30/06/23,UK Hotels,PF People and Business Change,Clarity Travel Management,CPSHQ180623,423.01,Y
Crown Prosecution Service ,07/06/23,UK National rail travel,CFO Strategic Financial Planning,Clarity Travel Management,CPSHQ280523,297.95,
Crown Prosecution Service ,07/06/23,UK National rail travel,Central Operational Training,Clarity Travel Management,CPSHQ280523,520.80,
Crown Prosecution Service ,07/06/23,UK National rail travel,CFO Commercial,Clarity Travel Management,CPSHQ280523,886.50,
Crown Prosecution Service ,07/06/23,UK National rail travel,PF Learning and Development General,Clarity Travel Management,CPSHQ280523,421.50,
Crown Prosecution Service ,07/06/23,UK National rail travel,PF Legal Training,Clarity Travel Management,CPSHQ280523,231.60,
Crown Prosecution Service ,07/06/23,UK National rail travel,PF Resourcing,Clarity Travel Management,CPSHQ280523,138.90,
Crown Prosecution Service ,07/06/23,UK National rail travel,PF HR Business Partnering,Clarity Travel Management,CPSHQ280523,615.60,
Crown Prosecution Service ,07/06/23,Overseas Air travel,Private Office,Clarity Travel Management,CPSHQ280523,"6,151.32",
Crown Prosecution Service ,07/06/23,UK National rail travel,PF HR Operations,Clarity Travel Management,CPSHQ280523,702.20,
Crown Prosecution Service ,07/06/23,UK National rail travel,CFO Financial Reporting,Clarity Travel Management,CPSHQ280523,61.40,
Crown Prosecution Service ,07/06/23,UK National rail travel,DTUS,Clarity Travel Management,CPSHQ280523,109.70,
Crown Prosecution Service ,07/06/23,UK National rail travel,DID Security and Information,Clarity Travel Management,CPSHQ280523,"1,484.10",
Crown Prosecution Service ,07/06/23,UK National rail travel,CFO Estates,Clarity Travel Management,CPSHQ280523,116.80,
Crown Prosecution Service ,07/06/23,UK National rail travel,Operational Performance,Clarity Travel Management,CPSHQ280523,429.00,
Crown Prosecution Service ,07/06/23,UK National rail travel,Strategy and Policy,Clarity Travel Management,CPSHQ280523,"1,092.90",
Crown Prosecution Service ,07/06/23,UK National rail travel,Chief Finance Officer,Clarity Travel Management,CPSHQ280523,464.60,
Crown Prosecution Service ,07/06/23,UK National rail travel,Private Office,Clarity Travel Management,CPSHQ280523,219.70,
Crown Prosecution Service ,07/06/23,UK National rail travel,Operational Change,Clarity Travel Management,CPSHQ280523,"1,271.40",
Crown Prosecution Service ,07/06/23,UK National rail travel,CFO Finance Operations,Clarity Travel Management,CPSHQ280523,326.90,
Crown Prosecution Service ,07/06/23,UK National rail travel,DID DTS Change,Clarity Travel Management,CPSHQ280523,"3,058.80",
Crown Prosecution Service ,07/06/23,UK National rail travel,Court Business Unit,Clarity Travel Management,CPSHQ280523,645.20,
Crown Prosecution Service ,07/06/23,UK National rail travel,DID Central Leadership Team,Clarity Travel Management,CPSHQ280523,366.00,
Crown Prosecution Service ,07/06/23,UK National rail travel,Operational Business Support,Clarity Travel Management,CPSHQ280523,508.25,
Crown Prosecution Service ,07/06/23,UK National rail travel,Press Office,Clarity Travel Management,CPSHQ280523,140.00,
Crown Prosecution Service ,07/06/23,UK National rail travel,PF People and Business Change,Clarity Travel Management,CPSHQ280523,271.10,
Crown Prosecution Service ,07/06/23,UK National rail travel,Permanent Transfer Costs,Clarity Travel Management,CPSHQ280523,163.30,
Crown Prosecution Service ,07/06/23,UK National rail travel,Corporate Communication,Clarity Travel Management,CPSHQ280523,815.60,
Crown Prosecution Service ,07/06/23,UK National rail travel,DID Operational Process,Clarity Travel Management,CPSHQ280523,408.80,
Crown Prosecution Service ,07/06/23,UK Hotels,Permanent Transfer Costs,Clarity Travel Management,CPSHQ280523,371.40,Y
Crown Prosecution Service ,07/06/23,UK Hotels,PF People and Business Change,Clarity Travel Management,CPSHQ280523,646.03,Y
Crown Prosecution Service ,07/06/23,UK Hotels,Press Office,Clarity Travel Management,CPSHQ280523,75.00,Y
Crown Prosecution Service ,07/06/23,UK Hotels,PF Resourcing,Clarity Travel Management,CPSHQ280523,88.00,Y
Crown Prosecution Service ,07/06/23,Overseas Hotels,Press Office,Clarity Travel Management,CPSHQ280523,75.00,Y
Crown Prosecution Service ,07/06/23,UK Hotels,Corporate Communication,Clarity Travel Management,CPSHQ280523,75.00,Y
Crown Prosecution Service ,07/06/23,UK Hotels,Private Office,Clarity Travel Management,CPSHQ280523,176.00,Y
Crown Prosecution Service ,07/06/23,Overseas Hotels,Private Office,Clarity Travel Management,CPSHQ280523,340.66,Y
Crown Prosecution Service ,07/06/23,UK Hotels,CFO Strategic Financial Planning,Clarity Travel Management,CPSHQ280523,142.75,Y
Crown Prosecution Service ,07/06/23,UK Hotels,CFO Finance Operations,Clarity Travel Management,CPSHQ280523,151.00,Y
Crown Prosecution Service ,07/06/23,UK Hotels,PF Analytics and Workforce Plan,Clarity Travel Management,CPSHQ280523,162.00,Y
Crown Prosecution Service ,07/06/23,UK Hotels,DTUS,Clarity Travel Management,CPSHQ280523,193.00,Y
Crown Prosecution Service ,07/06/23,UK Hotels,PF HR Business Management,Clarity Travel Management,CPSHQ280523,413.01,Y
Crown Prosecution Service ,07/06/23,UK Hotels,CFO Commercial,Clarity Travel Management,CPSHQ280523,951.99,Y
Crown Prosecution Service ,07/06/23,UK Hotels,PF Learning and Development General,Clarity Travel Management,CPSHQ280523,"1,323.25",Y
Crown Prosecution Service ,07/06/23,UK Hotels,Operational Change,Clarity Travel Management,CPSHQ280523,136.99,Y
Crown Prosecution Service ,07/06/23,Overseas Hotels,Operational Change,Clarity Travel Management,CPSHQ280523,332.40,Y
Crown Prosecution Service ,07/06/23,UK Hotels,Central Legal Training Team,Clarity Travel Management,CPSHQ280523,399.99,Y
Crown Prosecution Service ,07/06/23,UK Hotels,DID DTS Change,Clarity Travel Management,CPSHQ280523,"3,077.11",Y
Crown Prosecution Service ,07/06/23,UK Hotels,CFO Financial Reporting,Clarity Travel Management,CPSHQ280523,73.00,Y
Crown Prosecution Service ,07/06/23,UK Hotels,DID Operational Process,Clarity Travel Management,CPSHQ280523,73.00,Y
Crown Prosecution Service ,07/06/23,UK Hotels,CFO Estates,Clarity Travel Management,CPSHQ280523,88.00,Y
Crown Prosecution Service ,07/06/23,UK Hotels,DID Security and Information,Clarity Travel Management,CPSHQ280523,"1,020.87",Y
Crown Prosecution Service ,07/06/23,UK Hotels,DID Central Leadership Team,Clarity Travel Management,CPSHQ280523,90.51,Y
Crown Prosecution Service ,07/06/23,UK National rail travel,Central Legal Training Team,Clarity Travel Management,CPSHQ280523,"1,044.70",
Crown Prosecution Service ,07/06/23,UK National rail travel,PF MAER and Employee Relations,Clarity Travel Management,CPSHQ280523,219.10,
Crown Prosecution Service ,07/06/23,UK National rail travel,Compliance and Assurance,Clarity Travel Management,CPSHQ280523,"2,259.10",
Crown Prosecution Service ,07/06/23,UK National rail travel,DID DTS Technology,Clarity Travel Management,CPSHQ280523,335.30,
Crown Prosecution Service ,30/06/23,Crown Court Graduated Fee Scheme,SEOC Team 2,Deka Chambers Ltd,FK467720,"33,106.81",Y
Crown Prosecution Service ,07/06/23,Transcriptions and Translation,Other Corporate Programme Payments,Epiq Europe Ltd (Wordwave),0000001432,"21,713.15",
Crown Prosecution Service ,07/06/23,Recoverable VAT control,Balance Sheet,Epiq Europe Ltd (Wordwave),0000001432,"4,342.63",Y
Crown Prosecution Service ,12/06/23,Other managed/contractor services,Central Legal Training Team,Ernst & Young LLP London,GB01G000426092,"70,475.40",Y
Crown Prosecution Service ,12/06/23,IT services,DTS Programme Project Cost,eSynergy Solutions Ltd,INV00001221,"31,800.00",Y
Crown Prosecution Service ,12/06/23,IT services,DTS Programme Project Cost,eSynergy Solutions Ltd,INV00001222,"151,831.80",Y
Crown Prosecution Service ,12/06/23,IT services,DTS Programme Project Cost,eSynergy Solutions Ltd,INV00001231,"77,661.41",Y
Crown Prosecution Service ,07/06/23,Crown Court Graduated Fee Scheme,Cymru Wales South East Crown Court,Exchange Chambers - Liverpool,315364 GC,"26,633.50",Y
Crown Prosecution Service ,26/06/23,Crown Court Very High Cost Cases Full Scheme,RWD North Unit,Exchange Chambers Leeds ,535033 - AHQC MAY'23,"29,443.18",Y
Crown Prosecution Service ,15/06/23,Recoverable VAT control,Balance Sheet,FlyForm LTD Cardiff,INV-11410,"4,879.21",Y
Crown Prosecution Service ,15/06/23,IT services,DTS Programme Project Cost,FlyForm LTD Cardiff,INV-11410,"24,395.99",
Crown Prosecution Service ,30/06/23,Overseas Education School Fees: FCO approved schools,Intl Liaison Prosecutors,"Foreign, Commonwealth and Development Office",20007059,"53,726.00",
Crown Prosecution Service ,08/06/23,Crown Court Graduated Fee Scheme,London North Crown Court Unit,Foundry Chambers (9-12 Bell Yard),191094/ADS - 6,"29,894.88",Y
Crown Prosecution Service ,08/06/23,Crown Court Graduated Fee Scheme,London North Crown Court Unit,Foundry Chambers (9-12 Bell Yard),191094/AH - 6,"60,146.52",Y
Crown Prosecution Service ,08/06/23,Crown Court Graduated Fee Scheme,London North Crown Court Unit,Foundry Chambers (9-12 Bell Yard),191094/AH - 7,"25,286.88",Y
Crown Prosecution Service ,28/06/23,Crown Court Graduated Fee Scheme,London North Complex Casework Unit,Foundry Chambers (9-12 Bell Yard),196340/MC - 2,"28,293.60",Y
Crown Prosecution Service ,27/06/23,Crown Court Graduated Fee Scheme,Thames and Chiltern RASSO Unit,Furnival Chambers,176884/RC/,"25,230.36",Y
Crown Prosecution Service ,09/06/23,Crown Court Graduated Fee Scheme,Thames Chiltern Crown Court Unit,Goldsmith Chambers,228687mjw,"26,960.64",Y
Crown Prosecution Service ,29/06/23,Property management fees,Estate and FM: Programme,Government Property Agency London,00000001/25198,"10,188.02",Y
Crown Prosecution Service ,29/06/23,National non domestic rates,Estate and FM: Programme,Government Property Agency London,00000001/25198,"39,802.50",
Crown Prosecution Service ,29/06/23,Lease liability non current lease payments,Balance Sheet,Government Property Agency London,00000001/25198,"80,407.80",
Crown Prosecution Service ,29/06/23,Landlord service charge,Estate and FM: Programme,Government Property Agency London,00000001/25198,"96,008.49",
Crown Prosecution Service ,08/06/23,Property management fees,Estate and FM: Programme,Government Property Agency London,00000001/26004,"4,506.00",Y
Crown Prosecution Service ,08/06/23,Lease liability non current lease payments,Balance Sheet,Government Property Agency London,00000001/26004,"106,451.25",
Crown Prosecution Service ,08/06/23,National non domestic rates,Estate and FM: Programme,Government Property Agency London,00000001/26004,"52,528.61",
Crown Prosecution Service ,08/06/23,National non domestic rates,Estate and FM: Programme,Government Property Agency London,00000001/26005,"13,980.29",
Crown Prosecution Service ,08/06/23,Property management fees,Estate and FM: Programme,Government Property Agency London,00000001/26005,"10,418.75",Y
Crown Prosecution Service ,08/06/23,Landlord service charge,Estate and FM: Programme,Government Property Agency London,00000001/26005,"1,416.04",
Crown Prosecution Service ,08/06/23,Lease liability non current lease payments,Balance Sheet,Government Property Agency London,00000001/26005,"23,429.25",
Crown Prosecution Service ,08/06/23,Landlord service charge,Estate and FM: Programme,Government Property Agency London,00000001/26009,"36,053.59",Y
Crown Prosecution Service ,08/06/23,Property management fees,Estate and FM: Programme,Government Property Agency London,00000001/26009,"4,506.00",Y
Crown Prosecution Service ,08/06/23,National non domestic rates,Estate and FM: Programme,Government Property Agency London,00000001/26009,"24,819.54",
Crown Prosecution Service ,08/06/23,Lease liability non current lease payments,Balance Sheet,Government Property Agency London,00000001/26009,"59,760.60",
Crown Prosecution Service ,08/06/23,Property management fees,Estate and FM: Programme,Government Property Agency London,00000001/26010,"12,476.51",Y
Crown Prosecution Service ,08/06/23,Landlord service charge,Estate and FM: Programme,Government Property Agency London,00000001/26010,"3,116.60",
Crown Prosecution Service ,08/06/23,National non domestic rates,Estate and FM: Programme,Government Property Agency London,00000001/26010,"27,776.00",
Crown Prosecution Service ,08/06/23,Lease liability non current lease payments,Balance Sheet,Government Property Agency London,00000001/26010,"87,000.00",
Crown Prosecution Service ,08/06/23,Property management fees,Estate and FM: Programme,Government Property Agency London,00000001/26011,"8,252.17",Y
Crown Prosecution Service ,08/06/23,National non domestic rates,Estate and FM: Programme,Government Property Agency London,00000001/26011,"15,744.00",
Crown Prosecution Service ,08/06/23,Landlord service charge,Estate and FM: Programme,Government Property Agency London,00000001/26011,"25,777.03",
Crown Prosecution Service ,08/06/23,Short term leases from 2 to 12 months: Property,Estate and FM: Programme,Government Property Agency London,00000001/26011,"48,123.00",
Crown Prosecution Service ,08/06/23,Property management fees,Estate and FM: Programme,Government Property Agency London,00000001/26013,"7,145.27",Y
Crown Prosecution Service ,08/06/23,Landlord service charge,Estate and FM: Programme,Government Property Agency London,00000001/26013,"4,959.78",
Crown Prosecution Service ,08/06/23,Lease liability non current lease payments,Balance Sheet,Government Property Agency London,00000001/26013,"69,372.10",
Crown Prosecution Service ,08/06/23,National non domestic rates,Estate and FM: Programme,Government Property Agency London,00000001/26013,"23,501.75",
Crown Prosecution Service ,08/06/23,Property management fees,Estate and FM: Programme,Government Property Agency London,00000001/26014,"6,929.53",Y
Crown Prosecution Service ,08/06/23,Lease liability non current lease payments,Balance Sheet,Government Property Agency London,00000001/26014,"74,220.00",
Crown Prosecution Service ,08/06/23,National non domestic rates,Estate and FM: Programme,Government Property Agency London,00000001/26014,"26,398.10",
Crown Prosecution Service ,08/06/23,Landlord service charge,Estate and FM: Programme,Government Property Agency London,00000001/26014,"28,970.24",
Crown Prosecution Service ,08/06/23,Property management fees,Estate and FM: Programme,Government Property Agency London,00000001/26015,"7,088.80",Y
Crown Prosecution Service ,08/06/23,National non domestic rates,Estate and FM: Programme,Government Property Agency London,00000001/26015,"9,261.01",
Crown Prosecution Service ,08/06/23,Landlord service charge,Estate and FM: Programme,Government Property Agency London,00000001/26015,"28,794.77",
Crown Prosecution Service ,08/06/23,Lease liability non current lease payments,Balance Sheet,Government Property Agency London,00000001/26015,"32,778.00",
Crown Prosecution Service ,08/06/23,Property management fees,Estate and FM: Programme,Government Property Agency London,00000001/26016,"7,967.54",Y
Crown Prosecution Service ,08/06/23,Landlord service charge,Estate and FM: Programme,Government Property Agency London,00000001/26016,"18,833.48",
Crown Prosecution Service ,08/06/23,National non domestic rates,Estate and FM: Programme,Government Property Agency London,00000001/26016,"17,161.33",
Crown Prosecution Service ,08/06/23,Lease liability non current lease payments,Balance Sheet,Government Property Agency London,00000001/26016,"51,967.50",
Crown Prosecution Service ,08/06/23,Property management fees,Estate and FM: Programme,Government Property Agency London,00000001/26020,"8,203.24",Y
Crown Prosecution Service ,08/06/23,National non domestic rates,Estate and FM: Programme,Government Property Agency London,00000001/26020,"35,503.75",
Crown Prosecution Service ,08/06/23,Landlord service charge,Estate and FM: Programme,Government Property Agency London,00000001/26020,"38,864.85",
Crown Prosecution Service ,08/06/23,Lease liability non current lease payments,Balance Sheet,Government Property Agency London,00000001/26020,"89,856.60",
Crown Prosecution Service ,08/06/23,Property management fees,Estate and FM: Programme,Government Property Agency London,00000001/26025,"16,104.84",Y
Crown Prosecution Service ,08/06/23,National non domestic rates,Estate and FM: Programme,Government Property Agency London,00000001/26025,"65,651.94",
Crown Prosecution Service ,08/06/23,Landlord service charge,Estate and FM: Programme,Government Property Agency London,00000001/26025,"96,690.80",
Crown Prosecution Service ,08/06/23,Short term leases from 2 to 12 months: Property,Estate and FM: Programme,Government Property Agency London,00000001/26025,"210,288.00",
Crown Prosecution Service ,08/06/23,Property management fees,Estate and FM: Programme,Government Property Agency London,00000001/26026,"15,642.88",Y
Crown Prosecution Service ,08/06/23,Lease liability non current lease payments,Balance Sheet,Government Property Agency London,00000001/26026,"156,900.00",
Crown Prosecution Service ,08/06/23,National non domestic rates,Estate and FM: Programme,Government Property Agency London,00000001/26026,"51,221.25",
Crown Prosecution Service ,08/06/23,Landlord service charge,Estate and FM: Programme,Government Property Agency London,00000001/26026,"16,152.99",
Crown Prosecution Service ,08/06/23,Property management fees,Estate and FM: Programme,Government Property Agency London,00000001/26030,"15,375.55",Y
Crown Prosecution Service ,08/06/23,Landlord service charge,Estate and FM: Programme,Government Property Agency London,00000001/26030,"94,851.95",
Crown Prosecution Service ,08/06/23,Lease liability non current lease payments,Balance Sheet,Government Property Agency London,00000001/26030,"244,327.50",
Crown Prosecution Service ,08/06/23,National non domestic rates,Estate and FM: Programme,Government Property Agency London,00000001/26030,"81,403.05",
Crown Prosecution Service ,08/06/23,Property management fees,Estate and FM: Programme,Government Property Agency London,00000001/26033,"4,506.00",Y
Crown Prosecution Service ,08/06/23,Lease liability non current lease payments,Balance Sheet,Government Property Agency London,00000001/26033,"26,746.38",
Crown Prosecution Service ,08/06/23,Landlord service charge,Estate and FM: Programme,Government Property Agency London,00000001/26034,"51,054.00",Y
Crown Prosecution Service ,20/06/23,National non domestic rates,Estate and FM: Administration,Government Property Agency London,00000001/26181,"28,543.74",
Crown Prosecution Service ,20/06/23,Property management fees,Estate and FM: Programme,Government Property Agency London,00000001/26181,"3,930.91",
Crown Prosecution Service ,20/06/23,National non domestic rates,Estate and FM: Programme,Government Property Agency London,00000001/26181,"28,543.75",
Crown Prosecution Service ,20/06/23,Lease liability non current lease payments,Balance Sheet,Government Property Agency London,00000001/26181,"168,727.08",
Crown Prosecution Service ,20/06/23,Property management fees,Estate and FM: Administration,Government Property Agency London,00000001/26181,"3,930.91",
Crown Prosecution Service ,29/06/23,Property management fees,Estate and FM: Programme,Government Property Agency London,00000001/26207,"7,235.63",Y
Crown Prosecution Service ,29/06/23,National non domestic rates,Estate and FM: Programme,Government Property Agency London,00000001/26207,"14,592.00",
Crown Prosecution Service ,29/06/23,Lease liability non current lease payments,Balance Sheet,Government Property Agency London,00000001/26207,"35,100.00",
Crown Prosecution Service ,29/06/23,Landlord service charge,Estate and FM: Programme,Government Property Agency London,00000001/26207,"17,804.32",
Crown Prosecution Service ,29/06/23,Property management fees,Estate and FM: Programme,Government Property Agency London,00000001/26208,"6,249.19",Y
Crown Prosecution Service ,29/06/23,Lease liability non current lease payments,Balance Sheet,Government Property Agency London,00000001/26208,"11,687.50",
Crown Prosecution Service ,29/06/23,Landlord service charge,Estate and FM: Programme,Government Property Agency London,00000001/26208,"3,844.68",
Crown Prosecution Service ,29/06/23,National non domestic rates,Estate and FM: Programme,Government Property Agency London,00000001/26208,"4,167.44",
Crown Prosecution Service ,29/06/23,Property management fees,Estate and FM: Programme,Government Property Agency London,00000001/26209,"7,741.49",Y
Crown Prosecution Service ,29/06/23,Lease liability non current lease payments,Balance Sheet,Government Property Agency London,00000001/26209,"17,383.30",
Crown Prosecution Service ,29/06/23,National non domestic rates,Estate and FM: Programme,Government Property Agency London,00000001/26209,"5,760.08",
Crown Prosecution Service ,29/06/23,Property management fees,Estate and FM: Programme,Government Property Agency London,00000001/26245,"6,402.24",Y
Crown Prosecution Service ,29/06/23,Lease liability non current lease payments,Balance Sheet,Government Property Agency London,00000001/26245,"6,002.47",
Crown Prosecution Service ,29/06/23,National non domestic rates,Estate and FM: Programme,Government Property Agency London,00000001/26245,"4,156.00",
Crown Prosecution Service ,29/06/23,Landlord service charge,Estate and FM: Programme,Government Property Agency London,00000001/26245,"18,659.77",
Crown Prosecution Service ,29/06/23,Lease liability non current lease payments,Balance Sheet,Government Property Agency London,00000001/26246,"6,444.25",
Crown Prosecution Service ,29/06/23,Property management fees,Estate and FM: Administration,Government Property Agency London,00000001/26246,"4,506.00",Y
Crown Prosecution Service ,29/06/23,Landlord service charge,Estate and FM: Administration,Government Property Agency London,00000001/26246,"23,277.00",
Crown Prosecution Service ,29/06/23,National non domestic rates,Estate and FM: Administration,Government Property Agency London,00000001/26246,"3,324.59",
Crown Prosecution Service ,29/06/23,Property management fees,Estate and FM: Programme,Government Property Agency London,00000001/26262,"9,291.31",Y
Crown Prosecution Service ,29/06/23,National non domestic rates,Estate and FM: Programme,Government Property Agency London,00000001/26262,"18,688.00",
Crown Prosecution Service ,29/06/23,Lease liability non current lease payments,Balance Sheet,Government Property Agency London,00000001/26262,"47,000.00",
Crown Prosecution Service ,29/06/23,Landlord service charge,Estate and FM: Programme,Government Property Agency London,00000001/26262,"11,351.25",
Crown Prosecution Service ,20/06/23,National non domestic rates,Estate and FM: Administration,Government Property Agency London,00000001/26347,"28,543.74",
Crown Prosecution Service ,20/06/23,Lease liability non current lease payments,Balance Sheet,Government Property Agency London,00000001/26347,"83,178.52",
Crown Prosecution Service ,20/06/23,Property management fees,Estate and FM: Programme,Government Property Agency London,00000001/26347,"3,930.91",
Crown Prosecution Service ,20/06/23,Property management fees,Estate and FM: Administration,Government Property Agency London,00000001/26347,"3,930.91",
Crown Prosecution Service ,20/06/23,National non domestic rates,Estate and FM: Programme,Government Property Agency London,00000001/26347,"28,543.75",
Crown Prosecution Service ,16/06/23,Landlord service charge,Estate and FM: Programme,Government Property Agency London,00000001/26358,"60,089.32",
Crown Prosecution Service ,19/06/23,Recoverable VAT control,Balance Sheet,Government Property Agency London,00000001/26427,"5,113.64",Y
Crown Prosecution Service ,19/06/23,Facilities management,Estate and FM: Programme,Government Property Agency London,00000001/26427,"25,568.28",
Crown Prosecution Service ,28/06/23,Reactive Maintenance,Estate and FM: Programme,Government Property Agency London,00000001/26536,"37,440.49",
Crown Prosecution Service ,12/06/23,Advice/PreSending Very High Cost Cases Full Scheme,Mersey Cheshire Complex Casework Unit,Harrington Street Chambers,1096572/NJS41,"45,776.80",
Crown Prosecution Service ,26/06/23,Crown Court Very High Cost Cases Full Scheme,Cymru Wales Complex Casework Unit,Iscoed Chambers,158528.5,"30,453.00",Y
Crown Prosecution Service ,14/06/23,Crown Court Very High Cost Cases Full Scheme,Cymru Wales Complex Casework Unit,Iscoed Chambers,158528.9,"42,308.40",Y
Crown Prosecution Service ,23/06/23,IT non capital software licences,Legal Reference and ICT Licenses,Konica Minolta Business Solutions Limited,1162781278,"436,624.91",Y
Crown Prosecution Service ,23/06/23,IT non capital software licences,Legal Reference and ICT Licenses,Konica Minolta Business Solutions Limited,1162781336,"110,410.30",Y
Crown Prosecution Service ,16/06/23,Variable lease payment expenses IT and Equipment,Print Contract,Konica Minolta Business Solutions Limited,Bulk202303,"125,355.03",
Crown Prosecution Service ,16/06/23,Lease liability non current lease payments,Balance Sheet,Konica Minolta Business Solutions Limited,Bulk202303,"20,790.00",
Crown Prosecution Service ,16/06/23,Recoverable VAT control,Balance Sheet,Konica Minolta Business Solutions Limited,Bulk202303,"29,229.00",Y
Crown Prosecution Service ,12/06/23,Recoverable VAT control,Balance Sheet,Konica Minolta Business Solutions Limited,Fleet202303,"21,874.60",Y
Crown Prosecution Service ,12/06/23,Variable lease payment expenses IT and Equipment,Print Contract,Konica Minolta Business Solutions Limited,Fleet202303,"109,373.02",
Crown Prosecution Service ,09/06/23,External Training,PF Operational HR Costs,KPMG LLP London,5502630639,"14,326.00",
Crown Prosecution Service ,09/06/23,Recoverable VAT control,Balance Sheet,KPMG LLP London,5502630639,"4,826.00",Y
Crown Prosecution Service ,09/06/23,External Training,PF Operational HR Costs,KPMG LLP London,5502630639,"9,804.00",
Crown Prosecution Service ,16/06/23,Other publicity and media costs,PF Operational HR Costs,Law Society,SIN0034181,"72,000.00",
Crown Prosecution Service ,26/06/23,Crown Court Graduated Fee Scheme,North West Crown Court Hub,Lincoln House Chambers,254369 MF,"30,354.00",Y
Crown Prosecution Service ,12/06/23,IT services,Other IT costs,Lumen Technologies UK Ltd,644026749/1144859,"51,727.82",Y
Crown Prosecution Service ,13/06/23,Recoverable VAT control,Balance Sheet,Mendip Media Group Ltd Tiverton,0000000214,"7,502.20",Y
Crown Prosecution Service ,13/06/23,Transcriptions and Translation,Other Corporate Programme Payments,Mendip Media Group Ltd Tiverton,0000000214,"37,511.00",
Crown Prosecution Service ,13/06/23,Recoverable VAT control,Balance Sheet,Mendip Media Group Ltd Tiverton,0000000215,"5,046.20",Y
Crown Prosecution Service ,13/06/23,Transcriptions and Translation,North East RASSO Unit,Mendip Media Group Ltd Tiverton,0000000215,"9,751.00",
Crown Prosecution Service ,13/06/23,Transcriptions and Translation,South West RASSO Unit Crown Court,Mendip Media Group Ltd Tiverton,0000000215,"15,480.00",
Crown Prosecution Service ,13/06/23,Recoverable VAT control,Balance Sheet,Mendip Media Group Ltd Tiverton,0000000217,"5,430.60",Y
Crown Prosecution Service ,13/06/23,Transcriptions and Translation,Other Corporate Programme Payments,Mendip Media Group Ltd Tiverton,0000000217,"27,153.00",
Crown Prosecution Service ,13/06/23,Transcriptions and Translation,Other Corporate Programme Payments,Mendip Media Group Ltd Tiverton,0000000220,"35,114.00",
Crown Prosecution Service ,13/06/23,Recoverable VAT control,Balance Sheet,Mendip Media Group Ltd Tiverton,0000000220,"7,022.80",Y
Crown Prosecution Service ,13/06/23,Recoverable VAT control,Balance Sheet,Mendip Media Group Ltd Tiverton,0000000221,"5,029.20",Y
Crown Prosecution Service ,13/06/23,Transcriptions and Translation,South West RASSO Unit Crown Court,Mendip Media Group Ltd Tiverton,0000000221,"17,180.00",
Crown Prosecution Service ,13/06/23,Transcriptions and Translation,North East RASSO Unit,Mendip Media Group Ltd Tiverton,0000000221,"7,966.00",
Crown Prosecution Service ,07/06/23,IT services,DTS Programme Project Cost,Mobilise Cloud Services Limited London,CPSINV060,"53,627.26",Y
Crown Prosecution Service ,19/06/23,Crown Court Graduated Fee Scheme,Yorks and Humbs CC Legal,New Park Court Chambers Leeds,360409/RSKC,"28,288.68",Y
Crown Prosecution Service ,20/06/23,Crown Court Graduated Fee Scheme,Counter Terrorism Unit: Internal Funding,New Park Court Chambers Leeds,367201/NPKC,"38,461.50",Y
Crown Prosecution Service ,23/06/23,Crown Court Graduated Fee Scheme,Counter Terrorism Unit: Internal Funding,New Park Court Chambers Leeds,367816/ACM,"25,806.96",Y
Crown Prosecution Service ,23/06/23,Crown Court Graduated Fee Scheme,Counter Terrorism Unit: Internal Funding,New Park Court Chambers Leeds,367816/TSS,"40,380.72",Y
Crown Prosecution Service ,16/06/23,Crown Court Graduated Fee Scheme,Mersey Cheshire Complex Casework Unit,Nine Bedford Row (9 Bedford Row),1178284PG,"32,372.10",Y
Crown Prosecution Service ,26/06/23,Crown Court Graduated Fee Scheme,Wessex Complex Casework Unit,No 5 Fountain Court Chambers,830467/MPB/,"57,687.84",Y
Crown Prosecution Service ,07/06/23,Crown Court Graduated Fee Scheme,West Midlands Crown Court Unit,No 5 Fountain Court Chambers,831022/DBM/,"41,355.48",Y
Crown Prosecution Service ,28/06/23,Crown Court Graduated Fee Scheme,West Midlands Crown Court Unit,No 5 Fountain Court Chambers,841059/HSS/,"77,746.08",Y
Crown Prosecution Service ,26/06/23,General Professional Services,DTS Programme Project Cost,NTT Data UK Ltd London,5028446,"505,680.72",Y
Crown Prosecution Service ,26/06/23,General Professional Services,DTS Programme Project Cost,NTT Data UK Ltd London,5028447,"78,738.00",Y
Crown Prosecution Service ,09/06/23,Crown Court Graduated Fee Scheme,Yorkshire and Humberside Complex Casework Unit,Park Square Barristers (No 6 and Sovereign merged),494603/KR/3,"28,222.08",Y
Crown Prosecution Service ,15/06/23,Crown Court Graduated Fee Scheme,RWD North Unit,Park Square Barristers (No 6 and Sovereign merged),509288/JJ,"42,586.08",Y
Crown Prosecution Service ,15/06/23,Crown Court Graduated Fee Scheme,RWD North Unit,Park Square Barristers (No 6 and Sovereign merged),511356/JHR/1,"28,352.64",Y
Crown Prosecution Service ,13/06/23,Crown Court Graduated Fee Scheme,North East Complex Casework Unit,Park Square Barristers (No 6 and Sovereign merged),515344/RWKC/1,"32,922.52",Y
Crown Prosecution Service ,28/06/23,Crown Court Graduated Fee Scheme,Yorkshire and Humberside Complex Casework Unit,Park Square Barristers (No 6 and Sovereign merged),520190/MMK/TRL/1,"60,330.60",Y
Crown Prosecution Service ,02/06/23,Crown Court Graduated Fee Scheme,North East Crown Court Unit,Park Square Barristers (No 6 and Sovereign merged),520790/MMKKC/1,"28,696.20",Y
Crown Prosecution Service ,28/06/23,Crown Court Graduated Fee Scheme,Yorkshire and Humberside Complex Casework Unit,Park Square Barristers (No 6 and Sovereign merged),521090/KC/TRL,"30,160.80",Y
Crown Prosecution Service ,21/06/23,Crown Court Very High Cost Cases Full Scheme,Special Crime Unit London,QEB Hollis Whiteman Chambers,PE 111420 16,"39,442.50",Y
Crown Prosecution Service ,21/06/23,Crown Court Graduated Fee Scheme,London North Crown Court Unit,QEB Hollis Whiteman Chambers,SL 111229 C,"30,550.20",Y
Crown Prosecution Service ,05/06/23,Crown Court Graduated Fee Scheme,London North Complex Casework Unit,QEB Hollis Whiteman Chambers,WB 111549 a,"42,332.40",Y
Crown Prosecution Service ,13/06/23,Crown Court Graduated Fee Scheme,SEOC Team 2,Queen Square Chambers,116850/RS,"26,369.40",Y
Crown Prosecution Service ,26/06/23,Crown Court Graduated Fee Scheme,SEOC Team 2,Queen Square Chambers,116850/RS1/5PB,"37,240.36",Y
Crown Prosecution Service ,21/06/23,Crown Court Graduated Fee Scheme,South West RASSO Unit Crown Court,Queen Square Chambers,157094CRKC,"42,274.20",Y
Crown Prosecution Service ,16/06/23,Crown Court Graduated Fee Scheme,East of England Complex Casework Unit,Red Lion Chambers (18 RLC),154717CPXtrialfees,"38,937.24",Y
Crown Prosecution Service ,16/06/23,Crown Court Graduated Fee Scheme,East of England Complex Casework Unit,Red Lion Chambers (18 RLC),158745MSCtrialfees,"33,274.20",Y
Crown Prosecution Service ,21/06/23,Other Staff Costs,Other Corporate Admin Payments,Reward Gateway (UK) Ltd,UK091720SI,"30,000.00",
Crown Prosecution Service ,07/06/23,IT non capital software licences,Legal Reference and ICT Licenses,SAP UK Ltd,10007230007797,"114,862.21",Y
Crown Prosecution Service ,07/06/23,IT non capital software licences,Legal Reference and ICT Licenses,Softcat Plc Marlow,INVUK876244,"64,358.40",Y
Crown Prosecution Service ,21/06/23,Advice/PreSending Very High Cost Cases Full Scheme,Mersey Cheshire Complex Casework Unit,St Johns Buildings - 24a - 28 St John Street,1125990 PIA16,"25,238.88",Y
Crown Prosecution Service ,19/06/23,Advice/PreSending Very High Cost Cases Full Scheme,RWD North Unit,St Pauls Chambers Leeds,140408 Inc40HWA,"29,838.60",Y
Crown Prosecution Service ,12/06/23,IT non capital software licences,Legal Reference and ICT Licenses,Thomson Reuters (Professional) UK Limited,6801466805,"867,798.00",
Crown Prosecution Service ,23/06/23,IT non capital software licences,Legal Reference and ICT Licenses,Trustmarque Solutions Ltd,2364483,"52,819.62",
Crown Prosecution Service ,23/06/23,Recoverable VAT control,Balance Sheet,Trustmarque Solutions Ltd,2364483,"10,563.92",Y
Crown Prosecution Service ,28/06/23,IT non capital software licences,Legal Reference and ICT Licenses,Truststream Security Solutions Limited Edinburgh,29645,"251,057.23",Y
Crown Prosecution Service ,14/06/23,Recoverable VAT control,Balance Sheet,Vodafone Ltd formerly Cable and Wireless Milton Keynes,4030200-1,"74,717.12",Y
Crown Prosecution Service ,14/06/23,Data Communications,DTS Programme Project Cost,Vodafone Ltd formerly Cable and Wireless Milton Keynes,4030200-1,"373,585.61",
Crown Prosecution Service ,14/06/23,Recoverable VAT control,Balance Sheet,Vodafone Ltd formerly Cable and Wireless Milton Keynes,4030201-1,"74,717.12",Y
Crown Prosecution Service ,14/06/23,Data Communications,DTS Programme Project Cost,Vodafone Ltd formerly Cable and Wireless Milton Keynes,4030201-1,"373,585.61",
Crown Prosecution Service ,14/06/23,Data Communications,DTS Programme Project Cost,Vodafone Ltd formerly Cable and Wireless Milton Keynes,4030202-1,"525,350.86",
Crown Prosecution Service ,14/06/23,Recoverable VAT control,Balance Sheet,Vodafone Ltd formerly Cable and Wireless Milton Keynes,4030202-1,"105,070.17",Y
Crown Prosecution Service ,12/06/23,IT services,ICT Network Services,Vodafone Ltd formerly Cable and Wireless Milton Keynes,4031423,"34,335.79",Y
Crown Prosecution Service ,12/06/23,IT services,ICT Network Services,Vodafone Ltd formerly Cable and Wireless Milton Keynes,4032067,"34,510.51",Y
Crown Prosecution Service ,19/06/23,Recoverable VAT control,Balance Sheet,Vodafone Ltd formerly Cable and Wireless Milton Keynes,4032403,"104,045.74",Y
Crown Prosecution Service ,19/06/23,Data Communications,DTS Programme Project Cost,Vodafone Ltd formerly Cable and Wireless Milton Keynes,4032403,"520,228.70",
Crown Prosecution Service ,28/06/23,IT services,ICT Network Services,Vodafone Ltd formerly Cable and Wireless Milton Keynes,4032666,"36,568.94",Y
Crown Prosecution Service ,13/06/23,Short term leases from 2 to 12 months: IT and Equipment,Print Contract,Xerox (UK) Ltd,900228594,"21,850.00",
Crown Prosecution Service ,13/06/23,Recoverable VAT control,Balance Sheet,Xerox (UK) Ltd,900228594,"4,370.00",Y
